fUSD/lending_fUSD_20240418
["ID","MTS","AMOUNT","RATE_DAILY","PERIOD"]
[322882406,1713472242434,-8479.21,0.00016998,2]
[322882407,1713472242444,-8479.21,0.00016998,2]
[322882408,1713472242455,-8479.21,0.00016998,2]
[322882409,1713472242465,-8479.32111311,0.00016998,2]
[322882410,1713472242475,-6482.74,0.00016999,2]
[322882411,1713472242485,-6482.74,0.00016999,2]
[322882412,1713472242496,-6482.74,0.00016999,2]
[322882413,1713472242507,-6482.74,0.00016999,2]
[322882414,1713472242517,-6482.74,0.00016999,2]
[322882415,1713472242526,-6482.74,0.00016999,2]
[322882416,1713472242535,-6482.74,0.00016999,2]
[322882417,1713472242544,-500.0,0.00016999,2]
[322882418,1713472242553,-500.0,0.00016999,2]
[322882419,1713472242562,-500.0,0.00016999,2]
[322882420,1713472242571,-500.0,0.00016999,2]
[322882421,1713472242580,-500.0,0.00016999,2]
[322882422,1713472242589,-500.0,0.00016999,2]
[322882423,1713472242598,-6791.23,0.00016999,2]
[322882424,1713472242607,-6791.23,0.00016999,2]
[322882425,1713472242616,-6791.23,0.00016999,2]
[322882426,1713472242627,-6791.23,0.00016999,2]
[322882427,1713472242637,-6791.23,0.00016999,2]
[322882428,1713472242647,-6791.23,0.00016999,2]
[322882430,1713472242656,-6791.23,0.00016999,2]
[322882432,1713472242666,-1661713.70091256,0.00017,2]
[322882433,1713472242675,-210.0,0.00017052,2]
[322882435,1713472242684,-2293.0,0.00017223,2]
[322882437,1713472242692,-2703.0,0.00017223,2]
[322882439,1713472242703,-461.0,0.00017223,2]
[322882440,1713472242713,-840.25,0.0001727,2]
[322882441,1713472242722,-150.0,0.00017274,2]
[322882442,1713472242732,-150.0,0.00017278,2]
[322882444,1713472242740,-500.0,0.0001728,2]
[322882446,1713472242749,-500.0,0.0001728,2]
[322882448,1713472242758,-900.0,0.0001728,2]
[322882450,1713472242768,-150.0,0.00017286,2]
[322882452,1713472242777,-150.0,0.0001729,2]
[322882454,1713472242786,-150.0,0.00017292,2]
[322882456,1713472242795,-174.18460334,0.00017293,2]
[322882457,1713472242804,-150.0,0.00017297,2]
[322882458,1713472242813,-172.28215529,0.00017299,2]
[322882459,1713472242822,-300.0,0.000173,2]
[322882461,1713472242832,-150.0,0.00017308,2]
[322882463,1713472242841,-150.0,0.00017308,2]
[322882466,1713472242850,-150.0,0.00017316,2]
[322882469,1713472242859,-199.68,0.00017317,2]
[322882471,1713472242868,-150.0,0.00017318,2]
[322882474,1713472242878,-150.0,0.00017325,2]
[322882477,1713472242887,-150.0,0.00017326,2]
[322882479,1713472242896,-150.0,0.00017331,2]
[322882481,1713472242906,-200.0,0.00017331,2]
[322882483,1713472242915,-150.0,0.00017337,2]
[322882485,1713472242924,-150.0,0.00017347,2]
[322882486,1713472242933,-150.0,0.00017353,2]
[322882487,1713472242942,-150.0,0.00017357,2]
[322882488,1713472242952,-150.0,0.00017357,2]
[322882489,1713472242961,-150.0,0.00017365,2]
[322882490,1713472242970,-150.0,0.00017372,2]
[322882491,1713472242979,-150.0,0.00017376,2]
[322882492,1713472242989,-150.0,0.00017379,2]
[322882493,1713472242997,-150.0,0.00017392,2]
[322882494,1713472243007,-150.0,0.00017392,2]
[322882495,1713472243016,-150.0,0.00017398,2]
[322882496,1713472243024,-150.0,0.000174,2]
[322882497,1713472243034,-2561.0,0.000174,2]
[322882498,1713472243043,-150.0,0.00017402,2]
[322882499,1713472243052,-150.0,0.00017403,2]
[322882500,1713472243061,-150.0,0.00017404,2]
[322882501,1713472243070,-150.0,0.00017407,2]
[322882502,1713472243079,-150.0,0.00017411,2]
[322882503,1713472243088,-150.0,0.00017418,2]
[322882504,1713472243098,-150.0,0.00017428,2]
[322882505,1713472243108,-150.0,0.00017429,2]
[322882506,1713472243119,-150.0,0.0001743,2]
[322882507,1713472243131,-150.0,0.00017432,2]
[322882508,1713472243141,-150.0,0.0001744,2]
[322882509,1713472243152,-150.0,0.00017443,2]
[322882510,1713472243162,-150.0,0.00017462,2]
[322882511,1713472243173,-150.0,0.00017464,2]
[322882512,1713472243183,-150.0,0.00017466,2]
[322882513,1713472243192,-150.0,0.0001747,2]
[322882514,1713472243202,-224.643,0.00017472,2]
[322882515,1713472243211,-609.0,0.00017472,2]
[322882516,1713472243221,-436.0,0.00017472,2]
[322882517,1713472243230,-177.612,0.00017472,2]
[322882518,1713472243239,-399.0,0.00017472,2]
[322882519,1713472243249,-1467.0,0.00017472,2]
[322882520,1713472243258,-3053.799,0.00017472,2]
[322882521,1713472243267,-2443.0,0.00017472,2]
[322882522,1713472243277,-214.0,0.00017472,2]
[322882523,1713472243286,-150.0,0.00017472,2]
[322882524,1713472243295,-1135.337,0.00017472,2]
[322882525,1713472243305,-443.0,0.00017472,2]
[322882527,1713472243315,-355.0,0.00017472,2]
[322882529,1713472243324,-5889.0,0.00017472,2]
[322882531,1713472243334,-969.0,0.00017472,2]
[322882533,1713472243344,-5725.0,0.00017472,2]
[322882535,1713472243355,-37661.0,0.00017472,2]
[322882537,1713472243364,-1392.0,0.00017472,2]
[322882539,1713472243374,-150.0,0.00017476,2]
[322882541,1713472243385,-150.0,0.00017477,2]
[322882543,1713472243395,-150.0,0.00017477,2]
[322882545,1713472243406,-150.0,0.0001748,2]
[322882547,1713472243416,-150.0,0.00017484,2]
[322882549,1713472243426,-150.0,0.00017486,2]
[322882551,1713472243435,-200.0,0.00017487,2]
[322882553,1713472243445,-1000.0,0.00017487,2]
[322882556,1713472243455,-150.0,0.00017488,2]
[322882558,1713472243465,-150.0,0.00017491,2]
[322882560,1713472243475,-150.0,0.00017492,2]
[322882562,1713472243486,-150.0,0.00017493,2]
[322882564,1713472243496,-6482.74,0.00017499,2]
[322882566,1713472243505,-150.0,0.000175,2]
[322882568,1713472243516,-159.78182,0.000175,2]
[322882571,1713472243525,-1100.0,0.000175,6]
[322882573,1713472243534,-150.0,0.00017504,2]
[322882575,1713472243543,-489.50678627,0.00017507,2]
[322882577,1713472243552,-150.0,0.00017509,2]
[322882579,1713472243561,-150.0,0.00017516,2]
[322882581,1713472243570,-150.0,0.0001752,2]
[322882583,1713472243579,-150.0,0.00017521,2]
[322882585,1713472243588,-150.0,0.00017522,2]
[322882587,1713472243598,-652.0,0.00017528,2]
[322882589,1713472243607,-150.0,0.00017533,2]
[322882591,1713472243617,-150.0,0.00017535,2]
[322882593,1713472243629,-1000.0,0.00017538,2]
[322882595,1713472243641,-578.0799,0.00017571,2]
[322882597,1713472243650,-7500.0,0.00017571,2]
[322882599,1713472243659,-1000.0,0.00017579,2]
[322882601,1713472243670,-10000.0,0.00017579,2]
[322882603,1713472243678,-15998.38454806,0.00017579,2]
[322882605,1713472243687,-1347.78684434,0.00017579,2]
[322882607,1713472243697,-189.93127907,0.00017579,2]
[322882608,1713472243707,-968.67891797,0.00017579,2]
[322882609,1713472243716,-2738.20481445,0.00017579,2]
[322882610,1713472243724,-174.18460334,0.00017597,2]
[322882611,1713472243733,-6791.23,0.00017598,2]
[322882612,1713472243743,-482.0,0.000176,2]
[322882613,1713472243754,-20005.16859644,0.000176,2]
[322882614,1713472243763,-1300.0,0.000176,6]
[322882615,1713472243772,-6791.23,0.0001767,2]
[322882616,1713472243782,-271.01572272,0.0001767,2]
[322882617,1713472243790,-495.56914,0.0001767,2]
[322882618,1713472243800,-148050.0,0.00017671,2]
[322882619,1713472243809,-567.0,0.00017671,2]
[322882620,1713472243819,-162.63,0.00017671,2]
[322882621,1713472243830,-162.63,0.00017671,2]
[322882622,1713472243839,-323.28,0.00017671,2]
[322882623,1713472243850,-1730.932268,0.00017676,2]
[322882624,1713472243860,-3188.232298,0.00017676,2]
[322882625,1713472243870,-42621.3336295,0.00017676,2]
[322882626,1713472243880,-5487.5096294,0.00017676,2]
[322882627,1713472243892,-784.59082143,0.00017678,2]
[322882628,1713472243903,-210.32926479,0.00017678,2]
[322882629,1713472243913,-966.55573744,0.00017678,2]
[322882630,1713472243923,-155.0,0.00017678,2]
[322882631,1713472243932,-3900.74743506,0.00017678,2]
[322882632,1713472243942,-1786.0781724,0.00017678,2]
[322882633,1713472243951,-1222.95023345,0.00017678,2]
[322882634,1713472243960,-252.95377861,0.00017679,2]
[322882635,1713472243970,-6482.74,0.00017679,2]
[322882636,1713472243979,-6482.74,0.00017679,2]
[322882637,1713472243988,-6482.74,0.00017679,2]
[322882638,1713472243997,-6482.74,0.00017679,2]
[322882639,1713472244006,-6482.74,0.00017679,2]
[322882640,1713472244015,-6482.79692224,0.00017679,2]
[322882641,1713472244024,-190.10060775,0.00017679,2]
[322882642,1713472244034,-190.10060775,0.00017679,2]
[322882643,1713472244043,-6791.23,0.00017679,2]
[322882644,1713472244053,-6791.23,0.00017679,2]
[322882645,1713472244062,-6791.23,0.00017679,2]
[322882646,1713472244071,-6791.23,0.00017679,2]
[322882647,1713472244080,-6791.23,0.00017679,2]
[322882648,1713472244089,-6791.23,0.00017679,2]
[322882649,1713472244099,-6791.23,0.00017679,2]
[322882650,1713472244108,-6791.23,0.00017679,2]
[322882651,1713472244117,-6791.23,0.00017679,2]
[322882652,1713472244127,-6791.23,0.00017679,2]
[322882653,1713472244139,-6791.23,0.00017679,2]
[322882654,1713472244150,-6791.23,0.00017679,2]
[322882655,1713472244159,-6791.23,0.00017679,2]
[322882656,1713472244169,-6791.23,0.00017679,2]
[322882657,1713472244180,-6791.40861141,0.00017679,2]
[322882658,1713472244190,-185.0100637,0.0001768,2]
[322882659,1713472244200,-2742865.77560249,0.0001768,2]
[322882660,1713472244217,-548.56690067,0.0001768,2]
[322882661,1713472244522,-1000.3,0.0001768,2]
[322882662,1713472244534,-137185.39999858,0.0001768,2]
[322882663,1713472244546,-24263.73465755,0.0001768,2]
[322882664,1713472244588,-943.80866538,0.0001768,2]
[322882665,1713472244600,-2543.68670773,0.0001768,2]
[322882666,1713472244644,-1335758.94727089,0.0001768,2]
[322882667,1713472244653,-11302.6518274,0.00017688,2]
[322882668,1713472244663,-200.0,0.000177,6]
[322882669,1713472244673,-150.0,0.00017726,2]
[322882670,1713472244682,-150.0,0.00017726,2]
[322882671,1713472244691,-150.0,0.00017726,2]
[322882672,1713472244701,-150.0,0.00017726,2]
[322882673,1713472244710,-8891.61765282,0.000178,2]
[322882674,1713472244720,-200.0,0.000178,6]
[322882675,1713472244730,-3163.92619622,0.00017825,2]
[322882676,1713472244740,-500.0,0.00017828,2]
[322882677,1713472244750,-900.0,0.00017828,2]
[322882678,1713472244761,-255.56886018,0.00017856,2]
[322882679,1713472244770,-1347.78684432,0.00017856,2]
[322882680,1713472244780,-968.67891795,0.00017856,2]
[322882681,1713472244788,-2738.20481445,0.00017856,2]
[322882682,1713472244797,-169.37,0.00017859,2]
[322882683,1713472244808,-190.10060775,0.00017879,2]
[322882684,1713472244818,-184.480212,0.0001788,2]
[322882685,1713472244829,-151.0,0.0001788,2]
[322882686,1713472244839,-157.585367,0.0001788,2]
[322882687,1713472244852,-157.585367,0.0001788,2]
[322882688,1713472244864,-151.0,0.0001788,2]
[322882689,1713472244874,-151.0,0.0001788,2]
[322882690,1713472244884,-169.564731,0.0001788,2]
[322882691,1713472244894,-213.263306,0.0001788,2]
[322882692,1713472244903,-57536.07204285,0.0001788,2]
[322882693,1713472244913,-57536.07204276,0.0001788,2]
[322882694,1713472244922,-57536.07204276,0.0001788,2]
[322882695,1713472244931,-57536.07204276,0.0001788,2]
[322882696,1713472244940,-57536.07204276,0.0001788,2]
[322882697,1713472244950,-20554.72512565,0.0001788,2]
[322882698,1713472244959,-57536.07204276,0.0001788,2]
[322882699,1713472244968,-20554.7251256,0.0001788,2]
[322882700,1713472244978,-57536.07204276,0.0001788,2]
[322882701,1713472244987,-20554.7251256,0.0001788,2]
[322882702,1713472244997,-57536.07204276,0.0001788,2]
[322882703,1713472245007,-20554.7251256,0.0001788,2]
[322882704,1713472245017,-20554.7251256,0.0001788,2]
[322882705,1713472245026,-532.518631,0.0001788,2]
[322882706,1713472245035,-532.518631,0.0001788,2]
[322882707,1713472245044,-178.330461,0.0001788,2]
[322882708,1713472245054,-178.330461,0.0001788,2]
[322882709,1713472245063,-856.753136,0.0001788,2]
[322882710,1713472245072,-856.753136,0.0001788,2]
[322882711,1713472245081,-938.271362,0.0001788,2]
[322882712,1713472245091,-435.131516,0.0001788,2]
[322882713,1713472245100,-938.271362,0.0001788,2]
[322882714,1713472245109,-435.131516,0.0001788,2]
[322882715,1713472245118,-312.426475,0.0001788,2]
[322882716,1713472245128,-312.426475,0.0001788,2]
[322882717,1713472245139,-171.35312,0.0001788,2]
[322882718,1713472245148,-151.0,0.0001788,2]
[322882719,1713472245158,-151.0,0.0001788,2]
[322882720,1713472245167,-151.0,0.0001788,2]
[322882721,1713472245176,-151.0,0.0001788,2]
[322882722,1713472245186,-151.0,0.0001788,2]
[322882723,1713472245194,-151.0,0.0001788,2]
[322882724,1713472245204,-151.0,0.0001788,2]
[322882725,1713472245213,-151.0,0.0001788,2]
[322882726,1713472245224,-151.0,0.0001788,2]
[322882727,1713472245233,-151.0,0.0001788,2]
[322882728,1713472245242,-1393.29881,0.0001788,2]
[322882729,1713472245251,-1393.29881,0.0001788,2]
[322882730,1713472245262,-15998.38454798,0.00017881,2]
[322882731,1713472245271,-151.0,0.00017881,2]
[322882732,1713472245281,-501.661171,0.00017881,2]
[322882733,1713472245290,-501.661171,0.00017881,2]
[322882734,1713472245299,-151.0,0.00017881,2]
[322882735,1713472245309,-434.948112,0.00017881,2]
[322882736,1713472245318,-151.0,0.00017881,2]
[322882737,1713472245327,-301.25435,0.00017881,2]
[322882738,1713472245337,-434.948112,0.00017881,2]
[322882739,1713472245346,-151.0,0.00017881,2]
[322882740,1713472245355,-151.0,0.00017881,2]
[322882741,1713472245365,-301.25435,0.00017881,2]
[322882742,1713472245374,-151.0,0.00017881,2]
[322882743,1713472245384,-515.04223,0.00017881,2]
[322882744,1713472245394,-515.04223,0.00017881,2]
[322882745,1713472245404,-200.0,0.000179,6]
[322882746,1713472245413,-174.18460334,0.000179,2]
[322882747,1713472245423,-57536.07204276,0.00017984,2]
[322882748,1713472245432,-151.0,0.00017984,2]
[322882749,1713472245441,-151.0,0.00017984,2]
[322882750,1713472245451,-203.379297,0.00017984,2]
[322882751,1713472245460,-151.0,0.00017984,2]
[322882752,1713472245469,-203.379297,0.00017984,2]
[322882753,1713472245479,-151.0,0.00017984,2]
[322882754,1713472245488,-151.0,0.00017984,2]
[322882755,1713472245497,-268.826093,0.00017984,2]
[322882756,1713472245506,-268.826093,0.00017984,2]
[322882757,1713472245515,-151.7,0.00017988,2]
[322882758,1713472245524,-159.78183,0.0001799,2]
[322882759,1713472245534,-20006.31156942,0.00017994,2]
[322882760,1713472245543,-295.21957182,0.00017996,2]
[322882761,1713472245552,-681.19,0.00017997,2]
[322882762,1713472245562,-190.10060775,0.00017997,2]
[322882763,1713472245571,-953041.35518026,0.00017998,2]
[322882764,1713472245580,-151.0,0.00017998,2]
[322882765,1713472245590,-151.0,0.00017998,2]
[322882766,1713472245600,-151.0,0.00017998,2]
[322882767,1713472245609,-245.643879,0.00017998,2]
[322882768,1713472245618,-184.480212,0.00017998,2]
[322882769,1713472245630,-151.0,0.00017998,2]
[322882770,1713472245641,-151.0,0.00017998,2]
[322882771,1713472245650,-203.379297,0.00017998,2]
[322882772,1713472245659,-151.0,0.00017998,2]
[322882773,1713472245669,-203.379297,0.00017998,2]
[322882774,1713472245679,-151.0,0.00017998,2]
[322882775,1713472245688,-151.0,0.00017998,2]
[322882776,1713472245698,-268.826093,0.00017998,2]
[322882777,1713472245707,-268.826093,0.00017998,2]
[322882779,1713472245716,-501.661171,0.00017998,2]
[322882781,1713472245725,-501.661171,0.00017998,2]
[322882783,1713472245735,-151.0,0.00017998,2]
[322882785,1713472245743,-434.948112,0.00017998,2]
[322882787,1713472245752,-151.0,0.00017998,2]
[322882788,1713472245761,-301.25435,0.00017998,2]
[322882789,1713472245770,-151.0,0.00017998,2]
[322882790,1713472245779,-434.948112,0.00017998,2]
[322882791,1713472245789,-151.0,0.00017998,2]
[322882792,1713472245799,-301.25435,0.00017998,2]
[322882793,1713472245809,-151.0,0.00017998,2]
[322882794,1713472245818,-515.04223,0.00017998,2]
[322882795,1713472245827,-165.43399,0.00017998,2]
[322882797,1713472245837,-515.04223,0.00017998,2]
[322882798,1713472245846,-157.585367,0.00017998,2]
[322882799,1713472245856,-157.585367,0.00017998,2]
[322882800,1713472245865,-151.0,0.00017998,2]
[322882801,1713472245874,-151.0,0.00017998,2]
[322882802,1713472245882,-151.0,0.00017998,2]
[322882803,1713472245892,-151.0,0.00017998,2]
[322882804,1713472245902,-151.0,0.00017998,2]
[322882805,1713472245910,-151.0,0.00017998,2]
[322882806,1713472245919,-532.518631,0.00017998,2]
[322882807,1713472245928,-532.518631,0.00017998,2]
[322882808,1713472245937,-178.330461,0.00017998,2]
[322882809,1713472245947,-178.330461,0.00017998,2]
[322882810,1713472245956,-856.753136,0.00017998,2]
[322882811,1713472245965,-856.753136,0.00017998,2]
[322882812,1713472245974,-938.271362,0.00017998,2]
[322882813,1713472245983,-435.131516,0.00017998,2]
[322882814,1713472245992,-938.271362,0.00017998,2]
[322882815,1713472246001,-435.131516,0.00017998,2]
[322882816,1713472246010,-312.426475,0.00017998,2]
[322882817,1713472246019,-312.426475,0.00017998,2]
[322882818,1713472246028,-151.0,0.00017998,2]
[322882819,1713472246037,-151.0,0.00017998,2]
[322882820,1713472246046,-151.0,0.00017998,2]
[322882821,1713472246055,-151.0,0.00017998,2]
[322882822,1713472246065,-151.0,0.00017998,2]
[322882823,1713472246074,-151.0,0.00017998,2]
[322882824,1713472246083,-151.0,0.00017998,2]
[322882825,1713472246093,-151.0,0.00017998,2]
[322882826,1713472246102,-151.0,0.00017998,2]
[322882827,1713472246112,-151.0,0.00017998,2]
[322882828,1713472246122,-1393.29881,0.00017998,2]
[322882829,1713472246131,-1393.29881,0.00017998,2]
[322882830,1713472246141,-756.380668,0.00017998,2]
[322882831,1713472246150,-756.380668,0.00017998,2]
[322882832,1713472246159,-4367.910221,0.00017998,2]
[322882833,1713472246169,-500.40468584,0.00017999,2]
[322882834,1713472246178,-190.10060775,0.00017999,2]
[322882835,1713472246187,-190.10060775,0.00017999,2]
[322882836,1713472246197,-3685.06,0.00018,2]
[322882837,1713472246206,-224144.43201254,0.00018,2]
[322882838,1713472246250,-500.0,0.00018,2]
[322882839,1713472246261,-190593.3478239,0.00018,2]
[322882840,1713472246273,-3183.80000012,0.00018,2]
[322882841,1713472246284,-6347.60000001,0.00018,2]
[322882842,1713472246304,-1006.632,0.00018,2]
[322882843,1713472246315,-281.62,0.00018,2]
[322882844,1713472249132,-595.39897361,0.00017223,2]
[322882845,1713472249145,-301.1344,0.00017223,2]
[322882846,1713472249157,-158.46662639,0.00017223,2]
[322882847,1713472249166,-729.31537361,0.00017998,2]
[322882848,1713472249177,-1138.65087731,0.00017998,2]
[322882849,1713472249237,-284.80897199,0.00017998,2]
[322882850,1713472249248,-916.69980189,0.00017998,2]
[322882851,1713472249369,-986.37655184,0.00017998,2]
[322882852,1713472249380,-312.05864436,0.00017998,2]
[322882853,1713472249391,-786.75135564,0.00018,2]
[322882854,1713472251427,-162.63,0.00016849,2]
[322882855,1713472251437,-366.3087682,0.00017676,2]
[322882856,1713472251447,-52417.56274374,0.00018,2]
[322882857,1713472251606,-315.33405486,0.00017222,2]
[322882858,1713472251616,-12260.56754514,0.00018,2]
[322882859,1713472251630,-285.86354147,0.00018,2]
[322882860,1713472251736,-11631.30465014,0.00018,2]
[322882861,1713472251770,-648.0305839,0.00018,2]
[322882862,1713472251808,-2141.49622551,0.00018,2]
[322882863,1713472373534,221.04,0.00025761,120]
[322882864,1713472438960,1000.0,0.00026,120]
[322882865,1713472479202,1000.0,0.000266,120]
[322882866,1713472515140,1010.179,0.00027,120]
[322882867,1713472579966,1000.0,0.00026,120]
[322882868,1713472581434,616.52,0.00014883,2]
[322882869,1713472590512,151.0,0.00024025,120]
[322882870,1713472596582,86694.43666,0.00024,30]
[322882871,1713472602693,1000.0,0.000264,120]
[322882872,1713472642272,154.51,0.00016716,15]
[322882873,1713472671201,1000.0,0.000268,120]
[322882874,1713472937000,180.06,0.00013699,2]
[322882876,1713473177834,151.0,0.00024157,120]
[322882877,1713473188592,623.69,0.00014545,2]
[322882910,1713473243369,169.66,0.00024704,120]
[322882960,1713473432125,-643.3545244,0.00015978,2]
[322882961,1713473432135,-142.54397006,0.00015978,2]
[322882962,1713473432146,-500.81055434,0.00015978,2]
[322882963,1713473432157,-121.03373635,0.00015979,2]
[322882964,1713473432168,-33.96626365,0.00015979,2]
[322882965,1713473432177,-243.97636498,0.00015979,2]
[322882966,1713473432283,-997.32456831,0.00015979,2]
[322882967,1713473432293,-1000.0,0.0001598,2]
[322882968,1713473432303,-155.0,0.00015981,2]
[322882969,1713473432313,-884.31474127,0.00015981,2]
[322882970,1713473432326,-2496.44173848,0.00015981,2]
[322882971,1713473432336,-2000.0,0.00016,2]
[322882972,1713473432345,-250.0,0.00016417,2]
[322882973,1713473432355,-169.66,0.00016469,2]
[322882974,1713473432364,-23900.0,0.00016495,2]
[322882975,1713473432374,-1006.11,0.00016495,2]
[322882976,1713473432384,-200.0,0.00016495,2]
[322882977,1713473432394,-504.15,0.00016501,2]
[322882978,1713473432404,-150.0,0.00016521,2]
[322882979,1713473432414,-225.08,0.0001653,2]
[322882980,1713473432423,-150.0,0.0001655,2]
[322882981,1713473432433,-7532.35,0.0001655,2]
[322882982,1713473432442,-499.99,0.0001655,2]
[322882983,1713473432451,-150.99,0.00016552,2]
[322882984,1713473432461,-495.85,0.00016716,2]
[322882985,1713473432470,-623.69,0.00016809,2]
[322882986,1713473432479,-168.38,0.00016996,2]
[322882987,1713473432488,-150.99,0.00017093,2]
[322882989,1713473432497,-221.04,0.00017174,2]
[322882991,1713473432506,-3548.04260698,0.00017183,2]
[322882993,1713473432515,-150.99,0.00017191,2]
[322882995,1713473432525,-2177.96914085,0.00017192,2]
[322882997,1713473432534,-800.0,0.0001728,2]
[322882999,1713473432543,-255.9446,0.00017373,2]
[322883001,1713473432552,-659.0,0.000174,2]
[322883003,1713473432561,-969.0,0.00017473,2]
[322883005,1713473432571,-1392.0,0.00017473,2]
[322883007,1713473432580,-2293.0,0.00017473,2]
[322883008,1713473432589,-461.0,0.00017473,2]
[322883009,1713473432599,-609.0,0.00017473,2]
[322883010,1713473432963,-436.0,0.00017473,2]
[322883011,1713473432981,-1545.0,0.00017473,2]
[322883012,1713473432991,-399.0,0.00017473,2]
[322883013,1713473433000,-214.0,0.00017473,2]
[322883014,1713473433011,-443.0,0.00017473,2]
[322883015,1713473433020,-355.0,0.00017473,2]
[322883016,1713473433029,-2703.0,0.00017473,2]
[322883017,1713473433038,-150.0,0.00017473,2]
[322883018,1713473433048,-6578.7596347,0.00017473,2]
[322883019,1713473433075,-453.51,0.00017473,2]
[322883020,1713473433088,-414.95236416,0.00017473,2]
[322883021,1713473433100,-3684.50000114,0.00017473,2]
[322883022,1713473433110,-3526.49999886,0.00017473,2]
[322883023,1713473433209,-406.13838012,0.00017473,2]
[322883044,1713473438854,-375.38415729,0.00017473,2]
[322883045,1713473438866,-324.95664198,0.00017473,2]
[322883046,1713473438960,-1092.02082175,0.00017473,2]
[322883047,1713473438969,-150.0,0.00017473,2]
[322883048,1713473438978,-2127.99658388,0.00017473,2]
[322883049,1713473438990,-3761.00341612,0.00017473,2]
[322883050,1713473438999,-1055.0,0.00017473,2]
[322883051,1713473439010,-150.0,0.00017473,2]
[322883052,1713473439019,-1000.0,0.0001758,2]
[322883053,1713473439028,-1107.99786743,0.0001764,2]
[322883054,1713473439037,-1111.95249402,0.0001764,2]
[322883055,1713473439046,-1079.18556226,0.0001764,2]
[322883056,1713473439057,-500.0,0.00017644,2]
[322883057,1713473439065,-200.0,0.00017644,2]
[322883058,1713473439074,-471.08568,0.0001782,2]
[322883059,1713473439086,-800.0,0.00017828,2]
[322883060,1713473439095,-20000.0,0.00017898,2]
[322883061,1713473439104,-2500.0,0.00017899,2]
[322883062,1713473439114,-164.96741634,0.00017899,2]
[322883063,1713473439123,-12031.98291093,0.00017899,2]
[322883064,1713473439132,-206.86865437,0.000179,2]
[322883065,1713473439141,-5031.6496,0.000179,2]
[322883066,1713473439151,-13331.98712339,0.000179,2]
[322883067,1713473439161,-7500.0,0.000179,2]
[322883068,1713473439171,-1090.0,0.000179,2]
[322883069,1713473439181,-1945.65927046,0.000179,2]
[322883070,1713473439190,-1232.73296723,0.000179,2]
[322883071,1713473439199,-1437.29,0.00017926,2]
[322883072,1713473439208,-909.21,0.00017926,2]
[322883073,1713473439217,-909.21,0.00017926,2]
[322883074,1713473439226,-909.21,0.00017926,2]
[322883075,1713473439235,-909.21,0.00017926,2]
[322883076,1713473439245,-508.83,0.00017926,2]
[322883077,1713473439254,-173.72520228,0.00017989,2]
[322883078,1713473439263,-207.26,0.00017989,2]
[322883079,1713473439273,-173.72520228,0.0001799,2]
[322883080,1713473439282,-3054.92806762,0.00017997,2]
[322883081,1713473439291,-155.08307846,0.00017997,2]
[322883082,1713473439301,-500.0,0.00017998,2]
[322883083,1713473439310,-500.0,0.00017998,2]
[322883084,1713473439319,-500.0,0.00017998,2]
[322883085,1713473439328,-500.0,0.00017998,2]
[322883086,1713473439338,-500.0,0.00017998,2]
[322883087,1713473439347,-500.0,0.00017998,2]
[322883088,1713473439357,-500.0,0.00017998,2]
[322883089,1713473439366,-528.0,0.00017999,2]
[322883090,1713473439376,-260922.84418096,0.00017999,2]
[322883091,1713473439453,-1707.48436319,0.00017999,2]
[322883092,1713473439477,-6276.71736,0.00017999,2]